bitfinex-derivatives/quotes_ETHF0:USTF0_20250831
["timestamp","ask_amount","ask_price","bid_price","bid_amount"]
[1756683750135,4.9254,4385.3,4384.1,0.8957]
[1756683750435,0.9254,4384.5,4384.1,0.8957]
[1756683750633,0.9254,4384.5,4384.2,1.1387]
[1756683751033,3.2078,4384.6,4384.2,1.1387]
[1756683751236,3.2078,4384.6,4384.2,0.243]
[1756683751634,0.9254,4384.5,4383.7,0.8957]
[1756683751932,0.9254,4384.5,4383.8,0.243]
[1756683752335,0.9254,4384.5,4383.7,0.8957]
[1756683752535,0.9254,4384.5,4383.8,0.243]
[1756683753234,0.9254,4384.5,4383.7,0.8957]
[1756683753444,0.9254,4384.5,4383.9,0.243]
[1756683753635,0.9254,4384.5,4383.6,3.2078]
[1756683753841,0.9254,4384.5,4383.7,0.243]
[1756683754146,3.2078,4384.6,4383.6,3.2078]
[1756683754330,0.9254,4383.6,4383.3,0.243]
[1756683754540,0.9254,4383.6,4383.4,0.243]
[1756683754834,0.9254,4383.6,4383.4,1.1387]
[1756683755133,3.2078,4383.7,4383.5,0.8957]
[1756683755340,4.1332,4383.7,4383.5,0.8957]
[1756683755534,0.9254,4383.6,4383.5,0.8957]
[1756683755738,3.2078,4383.7,4383.4,0.243]
[1756683755935,0.9254,4383.6,4383.5,0.243]
[1756683756737,0.9254,4383.5,4383.4,0.243]
[1756683756938,0.9254,4383.6,4383.4,0.243]
[1756683757339,0.9254,4383.6,4383.3,0.243]
[1756683757939,0.9254,4383.6,4382.2,0.8957]
[1756683757940,0.9029,4383.5,4382.2,0.8957]
[1756683758235,3.2078,4383.7,4382.2,0.8957]
[1756683758236,0.9029,4382.7,4382.3,0.243]
[1756683758540,3.2078,4382.8,4382.4,0.8819]
[1756683758743,0.9029,4383.3,4382.4,0.8819]
[1756683759237,3.2078,4383.6,4382.4,0.8819]
[1756683759633,0.9029,4383.5,4382.4,0.8819]
[1756683759835,0.9029,4383.5,4382.6,0.8819]
[1756683760039,0.9029,4383.5,4382.7,0.243]
[1756683760736,3.2078,4383.6,4382.8,0.8819]
[1756683761446,0.9029,4383.5,4382.8,0.8819]
[1756683761744,0.9029,4383.5,4382.9,0.243]
[1756683761944,3.2078,4383.6,4383.0,0.8819]
[1756683762844,3.2078,4383.6,4383.1,0.243]
[1756683763041,3.2078,4383.6,4383.2,0.8819]
[1756683763342,3.2078,4383.6,4383.3,40.8]
[1756683763547,3.2078,4384.3,4383.6,0.8819]
[1756683763748,0.114,4384.5,4383.5,3.2078]
[1756683763749,0.114,4384.5,4383.8,0.8819]
[1756683765340,0.114,4384.5,4383.8,0.41056]
[1756683765539,0.114,4384.5,4383.9,0.8819]
[1756683765734,0.114,4384.5,4384.1,0.8819]
[1756683765935,0.114,4384.5,4384.3,0.8819]
[1756683766638,0.114,4384.5,4384.2,0.243]
[1756683766834,0.114,4384.5,4384.1,0.8819]
[1756683767035,0.114,4384.5,4384.4,0.8819]
[1756683767248,3.2078,4384.9,4384.3,0.243]
[1756683767545,3.2078,4384.9,4384.3,1.1249]
[1756683768345,3.2078,4384.9,4384.3,0.8819]
[1756683768544,0.114,4384.8,4384.5,0.8819]
[1756683768846,0.9029,4384.7,4384.6,0.243]
[1756683769346,0.9029,4384.7,4384.6,1.1249]
[1756683769848,0.9029,4384.7,4384.2,0.8819]
[1756683770049,0.114,4384.8,4384.3,1.1249]
[1756683770344,1.5418,4384.4,4384.3,0.8819]
[1756683770541,1.5418,4384.4,4384.3,0.243]
[1756683770748,1.5418,4384.4,4383.9,0.8819]
[1756683770945,0.9029,4384.3,4384.1,0.8819]
[1756683771147,0.9029,4384.7,4384.1,0.8819]
[1756683771551,0.9029,4384.7,4384.6,0.6321]
[1756683771752,0.9029,4384.7,4384.6,1.757]
[1756683772449,1.5418,4384.7,4384.1,0.8819]
[1756683772652,0.9029,4384.6,4384.2,1.1249]
[1756683772951,0.9029,4384.7,4384.2,0.243]
[1756683773355,0.114,4384.8,4384.2,0.243]
[1756683773851,0.9029,4384.2,4383.9,0.8819]
[1756683774149,0.114,4384.8,4383.8,5.371]
[1756683774150,0.9029,4384.7,4384.0,0.243]
[1756683774545,0.6389,4384.2,4384.1,0.243]
[1756683774746,1.5418,4384.2,4384.1,0.8751]
[1756683774943,0.3938,4384.4,4384.1,1.757]
[1756683775149,0.3938,4384.4,4384.3,1.514]
[1756683775348,1.9356,4384.4,4384.3,1.514]
[1756683777255,0.3938,4384.4,4384.3,1.514]
[1756683777455,0.3938,4384.4,4384.3,4.7218]
[1756683777953,0.3938,4384.4,4384.3,4.9648]
[1756683778349,1.9356,4384.4,4384.3,4.0829]
[1756683778552,1.9356,4384.4,4383.9,0.8819]
[1756683778858,0.3938,4384.4,4384.2,1.514]
[1756683779053,1.5418,4384.3,4384.2,1.514]
[1756683779258,0.3938,4384.4,4384.3,1.514]
[1756683779657,0.3938,4384.4,4384.3,5.514]
[1756683779958,0.3938,4384.4,4384.3,1.514]
[1756683780151,0.3938,4384.4,4384.3,1.757]
[1756683780457,0.9029,4385.9,4385.8,1.1202]
[1756683780655,0.9029,4386.4,4385.8,0.8751]
[1756683781957,0.9029,4386.4,4385.8,0.6321]
[1756683782153,1.5418,4386.0,4385.9,0.243]
[1756683782347,1.5418,4386.0,4385.9,1.3632]
[1756683782656,4.1107,4386.5,4385.9,1.3632]
[1756683783456,0.243,4388.0,4385.3,73.648]
[1756683783457,3.2078,4386.3,4385.3,73.648]
[1756683783665,1.5418,4385.4,4385.3,32.848]
[1756683783864,1.5418,4385.4,4385.3,33.091]
[1756683784163,5.5418,4385.4,4385.3,33.091]
[1756683784462,4.9029,4385.4,4385.3,0.243]
[1756683784857,4.0,4385.4,4384.1,32.844]
[1756683785050,3.2078,4384.5,4384.2,0.243]
[1756683785655,0.9029,4384.4,4384.3,0.243]
[1756683785951,0.9029,4384.2,4383.5,4.1722]
[1756683786152,0.9029,4384.2,4383.6,33.087]
[1756683786353,0.243,4385.9,4383.6,33.087]
[1756683786556,0.9029,4385.0,4384.1,3.2078]
[1756683786757,4.1107,4385.0,4384.2,1.2074]
[1756683786957,0.9029,4384.9,4384.3,0.243]
[1756683787159,4.1107,4384.5,4384.3,0.243]
[1756683787463,4.1107,4384.5,4384.3,1.2074]
[1756683787860,3.2078,4384.5,4384.3,1.2074]
[1756683788065,3.2078,4385.2,4384.4,0.9661]
[1756683788264,0.962,4385.4,4384.4,0.9661]
[1756683788464,0.962,4385.4,4384.6,3.2078]
[1756683788767,0.962,4385.4,4384.8,0.9661]
[1756683789165,0.962,4385.9,4384.8,0.9661]
[1756683790858,0.962,4385.9,4384.9,0.243]
[1756683791260,0.962,4385.9,4385.0,0.9661]
[1756683791658,0.962,4385.9,4385.0,41.7661]
[1756683792260,0.962,4385.9,4385.1,4.1739]
[1756683792460,3.2078,4386.0,4385.3,0.9661]
[1756683792661,3.2078,4386.0,4385.5,0.9661]
[1756683792862,0.962,4386.2,4385.5,0.9661]
[1756683793264,3.2078,4386.5,4385.5,0.9661]
[1756683793661,3.2078,4386.5,4385.8,0.9661]
[1756683793862,3.2078,4386.5,4386.0,0.9661]
[1756683794965,0.962,4387.1,4386.4,0.9661]
[1756683795159,0.962,4387.1,4386.5,0.243]
[1756683795371,0.962,4387.1,4386.6,0.9661]
[1756683795577,3.2078,4387.2,4386.6,0.9661]
[1756683795775,3.2078,4387.2,4386.6,0.4103]
[1756683795973,3.2078,4387.2,4386.6,0.9661]
[1756683796876,0.962,4388.2,4387.2,0.9661]
[1756683797173,0.962,4388.2,4387.7,0.9661]
[1756683797375,3.2078,4388.7,4387.9,0.9661]
[1756683797571,0.962,4388.1,4387.9,0.9661]
[1756683797869,0.962,4388.1,4387.6,3.2078]
[1756683797870,0.962,4389.4,4388.0,1.2091]
[1756683798075,0.962,4389.4,4388.1,4.1739]
[1756683798279,0.962,4389.4,4388.2,0.9661]
[1756683798779,0.962,4389.4,4388.3,0.243]
[1756683799179,0.962,4389.4,4388.4,0.9661]
[1756683799774,0.962,4389.4,4388.7,0.9661]
[1756683799976,0.962,4389.4,4388.8,0.243]
[1756683800177,3.2078,4389.5,4388.8,0.243]
[1756683800178,0.962,4389.3,4388.9,33.8001]
[1756683800381,0.962,4389.3,4388.9,32.834]
[1756683800681,4.1698,4389.5,4388.9,33.8001]
[1756683800982,3.2078,4389.5,4388.9,32.834]
[1756683801181,3.2078,4389.5,4389.0,0.243]
[1756683801380,0.962,4389.1,4389.0,0.243]
[1756683801574,3.2078,4389.5,4389.0,0.243]
[1756683801777,0.962,4389.4,4389.1,0.9661]
[1756683801974,0.962,4389.4,4389.0,0.243]
[1756683802173,3.2078,4389.5,4389.1,0.9661]
[1756683802378,0.962,4389.5,4388.9,32.834]
[1756683802573,0.962,4390.0,4389.1,3.2078]
[1756683802886,1.5927,4389.3,4389.2,0.243]
[1756683803184,1.5927,4389.3,4389.2,1.2091]
[1756683803480,0.6307,4389.3,4389.0,0.9661]
[1756683803676,1.5927,4389.3,4389.2,0.243]
[1756683803882,3.2078,4391.5,4389.3,0.9661]
[1756683804185,2.282,4395.6,4390.3,0.9661]
[1756683804186,3.2078,4391.2,4390.3,0.9661]
[1756683804478,3.2078,4391.2,4390.4,0.243]
[1756683804680,3.2078,4391.2,4390.5,32.827]
[1756683805278,3.2078,4391.2,4390.6,0.9661]
[1756683805479,3.2078,4391.2,4390.7,0.243]
[1756683805679,3.2078,4391.2,4390.8,0.9661]
[1756683805882,0.962,4391.1,4390.9,0.243]
[1756683806081,3.2078,4391.2,4390.9,0.243]
[1756683806586,3.2078,4392.7,4391.1,3.2078]
[1756683806784,3.2078,4391.4,4391.2,0.243]
[1756683806975,3.2078,4391.4,4391.3,0.243]
[1756683807284,3.2078,4391.4,4390.2,0.9661]
[1756683807285,0.962,4391.2,4390.2,0.9661]
[1756683807480,3.2078,4390.8,4390.3,0.203]
[1756683807794,0.962,4390.7,4390.3,0.9661]
[1756683807981,0.962,4390.7,4390.4,0.243]
[1756683808381,3.2078,4390.8,4390.4,0.243]
[1756683808779,0.962,4391.3,4390.6,4.1739]
[1756683809486,0.962,4391.3,4390.7,0.243]
[1756683809778,0.962,4390.7,4390.0,3.19720631]
[1756683809979,0.962,4390.2,4389.3,0.9661]
[1756683810181,3.2078,4389.7,4389.4,1.1691]
[1756683810483,0.962,4390.4,4389.5,0.9661]
[1756683811087,0.962,4389.9,4389.6,0.243]
[1756683811283,0.962,4389.9,4389.2,3.2078]
[1756683811583,0.962,4389.9,4389.3,1.2091]
[1756683811784,0.962,4389.9,4389.4,0.243]
[1756683811986,0.962,4390.4,4389.4,1.2091]
[1756683812285,3.2078,4390.5,4389.4,1.2091]
[1756683812485,0.962,4390.4,4389.4,1.2091]
[1756683812686,0.243,4391.3,4389.2,3.2078]
[1756683812687,1.5927,4389.3,4389.2,3.2078]
[1756683812876,0.6307,4388.8,4388.7,36.0228]
[1756683813076,1.5927,4388.8,4388.7,32.815]
[1756683813281,1.5927,4388.8,4388.7,33.058]
[1756683813482,1.5927,4388.8,4388.7,32.815]
[1756683813685,1.5927,4388.8,4388.7,33.058]
[1756683814887,1.5927,4388.8,4387.4,0.41023]
[1756683814888,4.0,4388.8,4388.5,0.243]
[1756683815079,4.1698,4388.6,4388.5,0.243]
[1756683817683,4.8005,4388.6,4388.5,0.243]
[1756683817885,3.8385,4388.6,4388.4,0.243]
[1756683818091,1.5387,4388.5,4388.4,0.243]
[1756683818388,0.919,4388.4,4388.3,0.243]
[1756683818592,1.5387,4388.4,4387.6,3.2078]
[1756683818786,1.5387,4387.7,4387.6,3.2078]
[1756683819092,0.919,4387.8,4387.2,32.813]
[1756683819288,1.5387,4387.3,4387.2,32.813]
[1756683819486,1.5387,4387.3,4387.2,33.056]
[1756683819687,0.919,4387.3,4387.2,32.813]
[1756683819889,0.919,4387.3,4387.2,33.056]
[1756683820281,0.919,4387.3,4387.2,32.813]
[1756683820486,0.919,4387.3,4387.2,33.056]
[1756683821990,0.919,4388.0,4387.2,34.0189]
[1756683823197,3.2078,4388.1,4387.3,0.9629]
[1756683823588,2.2386,4388.1,4387.3,2.05122]
[1756683823789,2.2386,4388.1,4387.2,33.056]
[1756683823790,3.2078,4388.7,4388.0,3.2078]
[1756683823990,0.17926757,4390.6,4388.1,1.2059]
[1756683823991,4.1268,4388.8,4388.1,1.2059]
[1756683824489,3.2078,4389.3,4388.1,0.243]
[1756683824693,3.2078,4389.3,4388.3,0.41015]
[1756683824888,3.2078,4389.3,4388.5,0.9629]
[1756683825193,0.919,4389.2,4388.6,0.243]
[1756683825393,0.919,4389.2,4388.0,3.2078]
[1756683825594,0.919,4389.2,4388.1,0.9629]
[1756683825796,0.919,4389.2,4388.1,1.2059]
[1756683826595,0.919,4389.2,4388.2,0.243]
[1756683828997,0.919,4389.2,4388.3,0.9629]
[1756683830894,0.919,4389.2,4388.0,3.2078]
[1756683831198,0.6197,4388.2,4388.1,0.243]
[1756683831398,1.5387,4388.2,4388.0,3.2078]
[1756683831698,1.5387,4388.2,4388.1,0.243]
[1756683833498,1.5387,4388.2,4388.0,3.2078]
[1756683833695,3.2078,4388.7,4388.0,4.7628]
[1756683833897,0.919,4388.6,4388.1,1.2059]
[1756683834096,0.919,4388.6,4388.2,0.9629]
[1756683834398,4.1268,4388.7,4388.1,1.2059]
[1756683835400,0.6197,4388.2,4388.1,0.9629]
[1756683835601,1.5387,4388.2,4388.1,0.9629]
[1756683835899,1.5387,4388.2,4388.1,0.242]
[1756683836196,1.5387,4388.1,4388.0,3.2078]
[1756683836403,1.5387,4388.1,4388.0,3.4498]
[1756683836898,3.2078,4388.1,4387.5,3.2078]
[1756683837204,1.5387,4387.6,4387.5,3.2078]
[1756683837400,0.6197,4387.6,4387.5,0.242]
[1756683837601,0.6197,4387.6,4387.2,32.813]
[1756683837602,1.5387,4387.3,4387.2,32.813]
[1756683838000,0.919,4388.0,4387.2,34.0179]
[1756683838702,3.2078,4388.1,4387.2,34.0179]
[1756683838703,0.919,4387.8,4387.2,34.0179]
[1756683839405,0.919,4387.8,4387.7,1.555]
[1756683839600,1.5387,4387.8,4387.7,1.797]
[1756683840297,0.6197,4387.8,4387.7,1.797]
[1756683840498,3.2078,4388.1,4388.0,1.555]
[1756683840703,4.7465,4388.1,4387.4,0.9629]
[1756683840898,3.8275,4388.1,4388.0,1.555]
[1756683841103,3.2078,4388.1,4388.0,1.797]
[1756683841900,4.7465,4388.1,4388.0,1.797]
[1756683842999,3.2078,4388.1,4388.0,1.797]
[1756683843306,3.2078,4388.8,4388.7,1.555]
[1756683843605,3.2078,4388.8,4388.7,1.797]
[1756683844209,0.919,4389.2,4389.1,0.5921]
[1756683844402,0.6197,4388.6,4388.5,0.9629]
[1756683844602,1.5387,4388.6,4388.5,1.2049]
[1756683844803,1.5387,4388.6,4388.5,1.555]
[1756683845006,1.5387,4388.6,4388.5,1.797]
[1756683845204,1.5387,4388.6,4388.5,0.8341]
[1756683845598,0.6197,4388.6,4388.0,3.2078]
[1756683845804,1.5387,4388.6,4388.5,0.242]
[1756683846105,0.919,4388.5,4387.8,0.9629]
[1756683846302,1.5387,4387.9,4387.8,1.555]
[1756683846507,1.5387,4387.9,4387.8,1.797]
[1756683846903,0.919,4388.4,4387.8,1.797]
[1756683847100,0.919,4388.4,4387.8,4.0419]
[1756683847306,0.919,4389.0,4388.3,1.555]
[1756683847506,0.919,4389.0,4388.4,0.242]
[1756683848502,0.919,4389.0,4388.3,0.9629]
[1756683848710,1.5082,4388.6,4388.5,0.242]
[1756683849003,0.6197,4388.6,4388.5,1.7471]
[1756683849203,4.0963,4389.1,4388.6,0.8944]
[1756683849402,3.2078,4389.1,4388.5,0.242]
[1756683849710,4.6927,4389.1,4389.0,1.5051]
[1756683850005,4.6927,4389.1,4389.0,1.7471]
[1756683850205,4.6927,4389.1,4389.0,0.8527]
[1756683850406,4.6927,4389.1,4389.0,0.242]
[1756683850805,1.4849,4389.0,4388.9,0.242]
[1756683852205,3.2078,4389.1,4388.9,1.7471]
[1756683852406,3.2078,4389.1,4389.0,1.5051]
[1756683853608,3.2078,4389.6,4389.0,0.6107]
[1756683853908,4.6927,4389.6,4389.5,1.5051]
[1756683854209,4.6927,4389.6,4389.5,1.7471]
[1756683854408,3.2078,4389.6,4389.5,1.7471]
[1756683854608,3.2078,4389.6,4389.5,5.7471]
[1756683854809,0.8885,4390.5,4389.6,0.8944]
[1756683855010,1.4849,4389.7,4389.3,3.2078]
[1756683855212,1.4849,4389.4,4389.3,3.2078]
[1756683855410,1.4849,4389.4,4389.3,3.4498]
[1756683855713,1.4849,4389.4,4389.3,4.9549]
[1756683855909,0.8885,4390.5,4389.4,0.8944]
[1756683857113,0.8885,4390.5,4389.5,0.242]
[1756683857916,0.8885,4390.5,4389.6,0.8944]
[1756683859323,0.5964,4389.7,4389.6,1.5051]
[1756683859625,1.4849,4389.7,4389.6,1.5051]
[1756683859829,1.4849,4389.7,4389.6,1.7471]
[1756683860526,0.5964,4389.7,4389.6,1.7471]
[1756683860829,3.2078,4390.1,4389.6,0.242]
[1756683861022,0.5964,4389.5,4389.4,1.5051]
[1756683861223,0.5964,4389.5,4389.4,1.7471]
[1756683862928,1.4849,4389.0,4388.9,33.7124]
[1756683863122,1.4849,4389.0,4388.9,33.9544]
[1756683864134,1.4849,4389.0,4388.9,33.7124]
[1756683864325,1.4849,4389.0,4388.9,33.9544]
[1756683865629,1.4849,4389.0,4388.9,33.06]
[1756683866025,1.4849,4389.0,4388.9,33.7124]
[1756683866223,1.4849,4389.0,4388.9,33.06]
[1756683867029,1.4849,4389.0,4388.9,32.818]
[1756683867328,0.5964,4388.4,4388.3,3.8185]
[1756683867627,1.4849,4388.4,4388.3,4.7129]
[1756683867831,1.4849,4388.4,4388.3,0.242]
[1756683868828,0.5964,4388.4,4387.8,3.2078]
[1756683869029,0.5964,4388.0,4387.9,1.7471]
[1756683869223,4.0963,4388.6,4388.1,1.5051]
[1756683869418,1.4849,4388.3,4388.2,1.7471]
[1756683871525,1.4849,4389.0,4388.3,0.8944]
[1756683871825,1.4849,4389.0,4388.2,0.242]
[1756683871826,1.4849,4389.0,4388.9,0.6107]
[1756683872025,1.4849,4389.0,4388.5,0.8944]
[1756683872225,0.5964,4388.7,4388.6,1.7471]
[1756683872427,1.4849,4388.7,4387.9,0.8944]
[1756683872627,1.4849,4388.7,4388.0,0.242]
[1756683872829,1.4849,4388.7,4388.1,0.8944]
[1756683873429,1.4849,4388.7,4388.0,0.242]
[1756683873430,1.4849,4388.7,4388.6,1.5051]
[1756683873730,4.0963,4389.1,4388.6,1.7471]
[1756683873925,4.0963,4389.1,4389.0,0.6107]
[1756683874128,3.2078,4389.1,4389.0,1.7471]
[1756683874526,3.8042,4389.1,4389.0,1.7471]
[1756683874725,4.6927,4389.1,4389.0,1.7471]
[1756683875133,3.8042,4389.1,4389.0,1.7471]
[1756683875527,0.5964,4389.1,4389.0,1.7471]
[1756683875831,1.4849,4389.1,4389.0,1.7471]
[1756683876335,4.6927,4389.6,4389.5,1.5051]
[1756683876635,4.6927,4389.6,4389.5,1.7471]
[1756683876832,4.6927,4389.6,4389.5,0.242]
[1756683877129,4.6927,4389.6,4388.9,0.8944]
[1756683877329,0.8885,4389.5,4389.4,0.242]
[1756683877634,1.4849,4389.5,4389.4,0.242]
[1756683878535,1.4849,4389.5,4388.9,0.8944]
[1756683878727,1.4849,4389.5,4389.0,0.242]
[1756683879535,1.4849,4389.5,4388.9,0.8944]
[1756683879536,1.4849,4389.5,4389.1,0.242]
[1756683880731,1.4849,4389.5,4388.4,3.2078]
[1756683880732,0.8768,4389.4,4388.4,3.2078]
[1756683880937,0.6225,4388.6,4388.5,1.6721]
[1756683881138,1.4993,4388.6,4388.5,1.6721]
[1756683881829,1.4993,4388.6,4388.5,1.4301]
[1756683882233,1.4993,4388.6,4388.5,0.5744]
[1756683882433,1.4993,4388.6,4388.5,0.242]
[1756683882934,1.4993,4388.6,4388.5,0.8164]
[1756683883534,1.4993,4388.6,4388.5,1.6721]
[1756683883729,1.4993,4388.6,4388.5,1.4301]
[1756683884033,1.4993,4388.6,4388.5,0.242]
[1756683884436,4.7071,4388.6,4388.5,0.242]
[1756683884740,4.7071,4388.6,4388.4,0.242]
[1756683884928,4.7071,4388.6,4388.1,0.8557]
[1756683885129,3.8303,4388.6,4387.8,4.0635]
[1756683885334,0.6225,4388.0,4387.9,0.8164]
[1756683885532,1.4993,4388.0,4387.9,1.4301]
[1756683885736,1.4993,4388.0,4387.9,1.6721]
[1756683886034,1.4993,4388.0,4387.9,1.4301]
[1756683886239,1.4993,4388.0,4387.9,1.6721]
[1756683886437,1.4993,4387.9,4387.5,32.813]
[1756683886636,0.8768,4387.8,4387.6,0.242]
[1756683886943,3.2078,4388.1,4387.5,32.813]
[1756683886944,0.8768,4387.6,4387.5,32.813]
[1756683887146,0.8768,4387.6,4387.5,33.055]
[1756683887539,0.8768,4387.6,4387.5,32.813]
[1756683887735,0.8768,4387.6,4387.5,33.055]
[1756683889035,4.0846,4387.6,4387.5,33.055]
[1756683890343,4.0846,4387.6,4387.5,33.9107]
[1756683890840,3.2078,4388.1,4387.6,0.8557]
[1756683891040,3.2078,4388.1,4388.0,1.4301]
[1756683891240,3.2078,4388.1,4388.0,1.6721]
[1756683891436,3.8303,4388.1,4388.0,1.6721]
[1756683891739,4.7071,4388.1,4388.0,1.6721]
[1756683892043,3.8303,4388.1,4388.0,1.6721]
[1756683892245,3.2078,4388.1,4388.0,1.6721]
[1756683892844,3.8303,4388.1,4388.0,1.6721]
[1756683893147,4.7071,4388.1,4388.0,1.6721]
[1756683893349,4.7071,4388.1,4388.0,1.4301]
[1756683893547,4.7071,4388.1,4388.0,1.6721]
[1756683893945,3.8303,4388.1,4388.0,1.6721]
[1756683894343,3.8303,4388.1,4388.0,1.4301]
[1756683894544,4.7071,4388.1,4388.0,1.6721]
[1756683895946,4.7071,4388.1,4387.6,0.8557]
[1756683896250,1.4993,4387.8,4387.7,0.8164]
[1756683896750,1.4993,4387.8,4387.7,1.6721]
[1756683896941,1.4993,4387.8,4387.7,1.4301]
[1756683897140,1.4993,4387.8,4387.7,1.6721]
[1756683898752,1.4993,4388.5,4388.4,0.5744]
[1756683900254,1.4993,4388.5,4388.4,1.4301]
[1756683900454,3.2078,4388.6,4388.4,0.5744]
[1756683900648,3.2078,4389.1,4389.0,1.4301]
[1756683900847,3.2078,4389.6,4389.1,0.8557]
[1756683901057,3.2078,4389.6,4389.5,1.4301]
[1756683901348,1.4993,4388.6,4388.5,1.4301]
[1756683901543,1.4993,4388.6,4387.6,3.2078]
[1756683901748,0.8768,4388.3,4387.7,1.0977]
[1756683901952,0.8768,4388.3,4387.7,0.8557]
[1756683902246,3.2078,4388.4,4387.8,1.4301]
[1756683902247,1.4993,4387.9,4387.8,1.4301]
[1756683902454,4.7071,4387.9,4387.8,0.242]
[1756683902654,0.6225,4387.9,4387.8,1.6721]
[1756683902858,0.8768,4388.4,4387.8,1.6721]
[1756683903058,0.6225,4388.0,4387.9,1.4301]
[1756683903249,0.6225,4388.0,4387.8,0.242]
[1756683903250,0.6225,4388.0,4387.5,33.6687]
[1756683903452,0.6225,4387.7,4387.6,0.8164]
[1756683903657,0.8768,4388.5,4388.0,0.5744]
[1756683903853,3.2078,4389.0,4388.7,1.4301]
[1756683904156,3.2078,4389.0,4387.8,3.2078]
[1756683904157,1.4993,4388.9,4387.8,3.2078]
[1756683904357,3.2078,4389.0,4387.9,1.0977]
[1756683904551,3.2078,4388.5,4387.9,0.242]
[1756683904855,3.2078,4388.5,4387.5,32.813]
[1756683905057,0.6225,4387.7,4387.6,1.4301]
[1756683905261,1.4993,4387.7,4387.6,1.6721]
[1756683905753,0.6225,4387.7,4387.6,1.6721]
[1756683906158,1.4993,4387.7,4387.6,1.6721]
[1756683906350,0.8768,4387.6,4387.5,32.813]
[1756683906659,0.8768,4387.6,4387.5,33.055]
[1756683907455,0.8768,4387.6,4387.5,33.9107]
[1756683907773,0.8768,4387.6,4387.5,33.055]
[1756683908457,0.8768,4387.6,4387.5,32.813]
[1756683908655,1.4226,4386.8,4386.7,1.4217]
[1756683908853,1.4226,4386.8,4386.7,0.5834]
[1756683909257,1.4226,4386.8,4386.7,0.8254]
[1756683909459,0.8513,4386.7,4385.9,0.8383]
[1756683909650,3.2078,4386.5,4386.0,0.242]
[1756683909852,0.5713,4386.2,4386.1,1.4217]
[1756683910051,1.4226,4386.2,4386.1,1.4217]
[1756683910251,1.4226,4386.2,4386.1,1.6637]
[1756683911056,0.8513,4386.1,4385.9,0.8383]
[1756683911262,1.4226,4386.1,4386.0,0.242]
[1756683911958,1.4226,4386.1,4386.0,1.6637]
[1756683912150,3.2078,4386.5,4386.0,0.8254]
[1756683912346,1.4226,4386.2,4386.1,1.4217]
[1756683912752,3.2078,4386.5,4386.1,0.5834]
[1756683912955,1.4226,4386.4,4386.3,1.4217]
[1756683913459,1.4226,4386.4,4386.3,1.6637]
[1756683915558,1.4226,4386.4,4386.3,1.4217]
[1756683915757,1.4226,4386.4,4386.3,0.8254]
[1756683915953,1.4226,4386.4,4386.3,0.242]
[1756683916360,1.4226,4386.4,4386.3,1.6637]
[1756683916561,1.4226,4386.4,4385.9,0.8383]
[1756683916763,0.5713,4386.1,4386.0,0.242]
[1756683916957,1.4226,4386.1,4386.0,0.242]
[1756683917157,0.5713,4386.1,4386.0,1.6637]
[1756683917354,3.7791,4386.5,4386.4,0.5834]
[1756683917553,3.7791,4386.5,4386.4,1.6637]
[1756683917753,4.6304,4386.5,4386.4,0.5834]
[1756683918068,1.4226,4385.9,4385.8,33.6603]
[1756683918262,1.4226,4386.4,4386.3,1.4217]
[1756683918459,1.4226,4386.4,4386.3,1.6637]
[1756683918964,1.4226,4386.4,4386.3,0.242]
[1756683919159,1.4226,4386.4,4385.9,0.8383]
[1756683919560,1.4226,4386.4,4386.0,0.242]
[1756683919759,0.8513,4385.5,4385.3,0.8383]
[1756683919961,0.5713,4385.3,4385.2,4.6295]
[1756683920157,3.2078,4385.9,4385.2,3.4498]
[1756683920663,0.8513,4385.8,4385.3,0.8383]
[1756683920862,1.4226,4385.8,4385.7,1.4217]
[1756683921163,1.4226,4385.8,4385.7,1.6637]
[1756683921757,1.4226,4385.8,4385.7,0.242]
[1756683922057,1.4226,4385.8,4385.6,0.242]
[1756683922759,1.4226,4385.8,4384.9,0.8383]
[1756683922961,1.4226,4385.8,4385.0,0.242]
[1756683923465,1.4226,4385.8,4384.9,0.8383]
[1756683923667,1.4226,4385.8,4385.0,0.242]
[1756683924358,1.4226,4385.8,4385.7,0.5834]
[1756683924563,1.4226,4385.8,4385.7,1.4217]
[1756683924765,1.4226,4385.8,4385.7,0.242]
[1756683925162,1.4226,4385.8,4385.7,1.6637]
[1756683925366,0.8513,4386.4,4385.8,0.8383]
[1756683925568,1.4226,4386.4,4386.3,0.5834]
[1756683925763,1.4226,4386.4,4386.3,1.6637]
[1756683926363,1.4226,4386.4,4385.3,3.2078]
[1756683926563,1.4226,4385.5,4385.4,0.8254]
[1756683926763,3.2078,4385.8,4385.4,1.6637]
[1756683926966,1.4226,4385.6,4385.0,0.8383]
[1756683927260,0.8513,4385.5,4384.8,0.8383]
[1756683927465,0.8513,4385.5,4384.9,0.242]
[1756683927667,0.8513,4385.7,4385.0,0.8383]